Cogmind - Beta 14 @@@ ROGUE MODE // 2024.10.25 @ 19:19:38 Player: pd-p0l Result: Destroyed by G-34 Mercenary with Small Laser Performance ------------- Evolutions (0) 0 Regions Visited (1) 200 Robots Destroyed (19) 95 Value Destroyed (393) 393 Prototype IDs (0) 0 Alien Tech Used (0) 0 Bonus (0) 0 TOTAL SCORE: 688 Bonus ------- None Cogmind --------- Core Integrity 0/250 Matter 288/300 Energy 250/250 System Corruption 0% Temperature Cool (18) Movement Walking (260) Ox2 Location -10/Materials Parts ------- > --- POWER (1) -------- Ion Engine > --- PROPULSION (2) --- Aluminum Leg Aluminum Leg > --- UTILITY (2) ------ High-capacity Storage Unit Power Shielding > --- WEAPON (2) ------- Light Assault Rifle Light Assault Rifle > --- INVENTORY (20) --- Ion Engine Ion Engine Light Nuclear Core Light Treads Aluminum Leg Heat Sink Improved Heat Sink High-capacity Storage Unit Weight Redist. System Structural Scanner Sensor Array Seismic Detector Transport Network Coupler Hacking Suite Datajack Mining Laser Peak State ------------ > --- POWER ------------ Ion Engine > --- PROPULSION ------- Light Treads Light Treads > --- UTILITY ---------- High-capacity Storage Unit Power Shielding > --- WEAPON ----------- Assault Rifle Assault Rifle > --- INVENTORY -------- Ion Engine Ion Engine Aluminum Leg Aluminum Leg Aluminum Leg Heat Sink Small Storage Unit Large Storage Unit Weight Redist. System Structural Scanner Sensor Array Seismic Detector Transport Network Coupler Hacking Suite Assault Rifle Datajack Mining Laser [Rating: 9] Favorites ----------- Power Ion Engine Engine Ion Engine Propulsion Light Treads Treads Light Treads Leg Aluminum Leg Utility Power Shielding Storage High-capacity Storage Unit Protection Power Shielding Weapon Assault Rifle Ballistic Gun Assault Rifle Build | -11 -10 ------- Run | Yrd Mat Slots Evolved . | . . Power . | . . Propulsion . | . . Utility . | . . Weapon . | . . Parts Attached 13 | 6 7 Power 1 | 1 . Engine 1 | 1 . Core . | . . Reactor . | . . Propulsion 4 | 2 2 Treads 2 | 2 . Leg 2 | . 2 Wheel . | . . Hover . | . . Flight . | . . Utility 3 | 1 2 Device . | . . Storage 2 | 1 1 Processor . | . . Hackware . | . . Protection 1 | . 1 Artifact . | . . Weapon 5 | 2 3 Energy Gun . | . . Energy Cannon . | . . Ballistic Gun 5 | 2 3 Ballistic Cannon . | . . Launcher . | . . Special Weapon . | . . Impact Weapon . | . . Slashing Weapon . | . . Piercing Weapon . | . . Special Melee Weapon . | . . Unidentified Prototypes . | . . Parts Lost 4 | . 4 Power . | . . Propulsion 1 | . 1 Utility . | . . Weapon 3 | . 3 Highest Loss Streak 1 | . 1 To Critical Strikes . | . . Average Slot Usage (%) 96 | . 96 Engine 14 | . 14 Treads 24 | . 24 Leg 2 | . 2 Storage 14 | . 14 Protection 12 | . 12 Ballistic Gun 27 | . 27 Peak Build Rating 9 | 6 9 Average Rating 7 | 4 7 On Entrance 3 | . 6 Naked Turns . | . . Heaviest Build 50 | 14 50 Greatest Support 40 | 40 40 Greatest Overweight (x) 3 | 3 2 Average Overweight (x) . | . . Largest Inventory Capacity 20 | 8 20 Average Capacity 16 | 7 16 Most Carried 17 | 8 17 Average Carried 12 | 4 13 Final Capacity 20 | 8 20 Final Carried 16 | 8 16 Class Distribution -------------------- 100% | Mutant Dominant Class ---------------- Mutant | -10/Materials Resources | -11 -10 ----------- Run | Yrd Mat Matter Collected 695 | 210 485 Remotely . | . . Salvage Created 579 | 49 530 Parts 37 | 3 34 Haulers Intercepted 1 | . 1 Recyclers Shooed 1 | 1 . Parts Field Recycled . | . . Retrieved Matter . | . . Parts Self-Destructed . | . . Prevented . | . . Kills | -11 -10 ------- Run | Yrd Mat Combat Hostiles Destroyed 14 | . 14 Guns 14 | . 14 Classes Destroyed 6 | 1 5 Tunneler 2 | 2 . Hauler 1 | . 1 Operator 1 | . 1 Watcher 1 | . 1 Swarmer 6 | . 6 Grunt 8 | . 8 Best Kill Streak 3 | 2 3 Combat Bots Only 3 | . 3 Max Kills in Single Turn 1 | 1 1 Gunslinging . | . . Exploded . | . . Melee . | . . Uniques/NPCs Destroyed . | . . Combat | -11 -10 -------- Run | Yrd Mat Hostile Shots Fired 123 | . 123 Missed 26 | . 26 Damage Taken 1001 | . 1001 Core 254 | . 254 Absorbed by Shields . | . . Redirected to Shielding 16 | . 16 Core Remaining (%) 100 | 100 . Volleys Fired 83 | 5 78 Largest 2 | 2 2 Hottest 40 | 40 40 Shots Fired 151 | 10 141 Gun 151 | 10 141 Cannon . | . . Launcher . | . . Special . | . . Kinetic 151 | 10 141 Thermal . | . . Explosive . | . . Electromagnetic . | . . Robot Hit Streak 17 | 5 17 Robot Miss Streak 3 | 1 3 Penetration Max . | . . Secondary Targets . | . . Shots Hit Robots 102 | 8 94 Core Hits 37 | 3 34 Critical Kills . | . . Critical Parts Destroyed . | . . Critical Strikes . | . . Melee Attacks . | . . Impact . | . . Slashing . | . . Piercing . | . . Sneak Attacks . | . . Combat Hostiles . | . . Follow-up Attacks . | . . Damage Inflicted 1271 | 112 1159 Guns 1254 | 112 1142 Cannons . | . . Explosions . | . . Melee . | . . Ramming 17 | . 17 Kinetic 1254 | 112 1142 Thermal . | . . Explosive . | . . Electromagnetic . | . . Impact . | . . Slashing . | . . Piercing . | . . Highest Corruption . | . . Average Corruption . | . . Corruption Purged . | . . Corruption Blocked . | . . Overload Shots . | . . Overflow Damage . | . . Projectiles . | . . Explosions . | . . Melee . | . . Knockbacks . | . . Impact . | . . Kinetic . | . . Secondary . | . . Self-Inflicted Damage . | . . Shots . | . . Rammed 2 | . 2 Targets Rammed 3 | . 3 Kicked 1 | . 1 Crushed . | . . Highest Temperature 18 | . 18 Average Temperature 9 | . 9 Received Heat Transfer 396 | . 396 Siege Activations . | . . Robots Corrupted . | . . Combat Hostiles . | . . Parts Fried . | . . Impact Corruptions . | . . Robots Melted . | . . Combat Hostiles . | . . Parts Melted . | . . Heat Transferred . | . . Parts Sabotaged . | . . Parts Stolen . | . . Parts Stripped . | . . Power Chain Reactions . | . . Alert | -11 -10 ------- Run | Yrd Mat Peak Influence 200 | 10 200 Initial 6 | . 6 Average 52 | 2 56 Maximum Alert Level 1 | . 1 Low Security (%) 98 | 100 98 Level 1 1 | . 1 Level 2 . | . . Level 3 . | . . Level 4 . | . . Level 5 . | . . High Security . | . . Max Security . | . . Squads Dispatched 2 | . 2 Investigation 1 | . 1 Extermination . | . . Reinforcement 1 | . 1 Assault . | . . Garrison . | . . Intercept . | . . Searches Triggered . | . . Construction Impeded . | . . Haulers Reinforced . | . . Active Scanning Responses . | . . Cargo Convoy Interrupts . | . . Stealth | -11 -10 --------- Run | Yrd Mat Distress Signals 3 | . 3 Communications Jammed . | . . Distress Signals . | . . Times Spotted 30 | . 30 Peak Tracking Total 3 | . 3 Tactical Retreats 6 | . 6 Traps | -11 -10 ------- Run | Yrd Mat Traps Triggered 1 | . 1 Indirectly . | . . Trap Hack Attempts . | . . Triggered . | . . Disarmed . | . . Reprogrammed . | . . Reused . | . . Traps Extracted . | . . Installed . | . . Triggered . | . . Machines | -11 -10 ---------- Run | Yrd Mat Machines Disabled . | . . Max in Single Turn . | . . Machines Repaired . | . . Machines Dismantled . | . . Machines Sabotaged . | . . Overloaded Fab Kills . | . . Hacking | -11 -10 --------- Run | Yrd Mat Machines Accessed 2 | . 2 Terminals 2 | . 2 Fabricators . | . . Repair Stations . | . . Recycling Units . | . . Scanalyzers . | . . Garrison Access . | . . Total Hacks 2 | . 2 Successful 1 | . 1 Failed 1 | . 1 Catastrophic . | . . Database Lockouts . | . . Manual 1 | . 1 Terminals 2 | . 2 Fabricators . | . . Repair Stations . | . . Recycling Units . | . . Scanalyzers . | . . Garrison Access . | . . Terminal Hacks 1 | . 1 Robot Analysis 1 | . 1 Fabricator Hacks . | . . Repair Station Hacks . | . . Recycling Unit Hacks . | . . Scanalyzer . | . . Garrison Access Hacks . | . . Unauthorized Hacks . | . . Terminals . | . . Fabricators . | . . Repair Stations . | . . Recycling Units . | . . Scanalyzers . | . . Garrison Access . | . . Data Cores Recovered . | . . Used . | . . Hacking Detections 2 | . 2 Full Trace Events . | . . Feedback Events . | . . Feedback Blocked . | . . Robot Schematics Acquired . | . . Robots Built . | . . Authchips . | . . Time . | . . Total Robot Build Rating . | . . Part Schematics Acquired . | . . Parts Built . | . . Authchips . | . . Time . | . . Total Part Build Rating . | . . Parts Repaired . | . . Time . | . . Parts Recycled . | . . Recycled Matter . | . . Retrieved Matter . | . . Retrieved Components . | . . Parts Scanalyzed . | . . Part Schematics Acquired . | . . Parts Damaged . | . . Bothacking | -11 -10 ------------ Run | Yrd Mat Used RIF Installer . | . . Robots Hacked . | . . Non-combat . | . . Combat . | . . Robot Hacks Applied . | . . Relay Couplers Released . | . . Fabnet Peak Effective % . | . . Robots Rewired . | . . Allies Hacked . | . . Hacks Repelled . | . . Allies | -11 -10 -------- Run | Yrd Mat Total Allies . | . . Largest Group . | . . Highest-Rated Group . | . . Highest-Rated Ally . | . . Total Orders . | . . Ally Attacks . | . . Total Damage . | . . Kills . | . . Allies Corrupted . | . . Allies Melted . | . . Intel | -11 -10 ------- Run | Yrd Mat Robot Analysis Total 1 | . 1 Derelict Logs Recovered . | . . Drone Launches . | . . Drone Recoveries . | . . Exploration | -11 -10 ------------- Run | Yrd Mat Turns Passed 1435 | 109 1326 Spaces Moved 534 | 48 486 Core 9 | 9 . Treads 489 | 39 450 Legs 36 | . 36 Wheels . | . . Hover . | . . Flight . | . . Fastest Speed 50 | 50 160 Average Speed 208 | 157 213 Slowest Speed 320 | 200 320 Overloaded Moves . | . . Propulsion Burnouts . | . . Robots Hopped . | . . Cave-ins Triggered . | . . Exploration Rate (%) 37 | 4 70 Regions Visited 1 Branch Regions . Pre-discovered Areas . | . . Known Exits Taken . | . . Unknown Exits Taken 1 | 1 . Scrap Searched . | . . Spaces Dug . | . . Terrain Destroyed . | . . Melee . | . . Projectile . | . . AOE . | . . Terrain Rammed . | . . Walls Destroyed . | . . Machines Disabled . | . . Actions | -11 -10 --------- Run | Yrd Mat Total 707 | 72 635 Wait 38 | . 38 Move 533 | 47 486 Hop . | . . Pick Up 32 | 14 18 Fast Attach . | . . Attach 11 | 6 5 Detach . | . . Swap 2 | . 2 Drop 5 | . 5 Fire 83 | 5 78 Melee . | . . Ram . | . . Kick 1 | . 1 Crush 2 | . 2 Escape Stasis . | . . Rewire . | . . Trap . | . . Miscellaneous . | . . Route ------- -11/Scrapyard -10/Materials (discovered 3 exits: [*Mat] / [*Min] / [*Sub]) History --------- Turn | Location | Event 10 | -11/Scrapyard | Discovered new exit (range 16) 110 | -11/Scrapyard | Entered Materials 221 | -10/Materials | Discovered new exit (range 9) 313 | -10/Materials | Build established: Mutant 572 | -10/Materials | Discovered new exit (range 11) 810 | -10/Materials | Discovered new exit (range 8) 1195 | -10/Materials | Core integrity fell below 50% 1310 | -10/Materials | Derelicts attacked the area 1385 | -10/Materials | Core integrity fell below 20% 1436 | -10/Materials | Destroyed by G-34 Mercenary with Small Laser Last Messages --------------- 01266_ K-01 Serf collects debris. 01269_ Lgt. Treads destroyed. 01270_ K-01 Serf collects debris. 01284_ S-10 Pest destroyed. 01286_ K-01 Serf collects debris. 01287_ S-10 Pest destroyed. 01300_ Acquired 56 matter. 01302_ K-01 Serf collects debris. 01303_ Kicked K-01 Serf. 01310_ ALERT: Derelict incursion detected, rerouting patrols to target area. 01313_ Acquired Lgt. Assault Rifle. 01377_ Acquired Hcp. Storage Unit. 01378_ Dropped Lrg. Storage Unit. 01398_ Assault Rifle destroyed. 01408_ G-47 Trooper destroyed. 01418_ Acquired Lgt. Nuclear Core. 01425_ Acquired Imp. Heat Sink. 01426_ Acquired 50 matter. 01434_ K-01 Serf collects debris. Map ----- +----------------------------------------------------+ | ?????????????????????????????????????? | | ?????????????????????????????????????? | | ?????????????????????????????????????? | | ?????????????????????????????????????? | | ?????????????????????????????????????? | | ?????????????????????????????????????? | | ?????????????????????????????????????? | | ?????????????????????????????????????? | | ?????????????????????????????????????? | | ?????????????????????????????????????? | | ?????????????????????????????????????? | | ?????????????????????????????????????? | | ?????????????????????????????????????? | | ?????????????????????????????????????? | | ????????????????????? ???????????????? | | ???????????????????? "???????????????? | | ??????????????????? ????????????????? | | ???????????#######?=?????########????? | | ???????????# # ?????# """ #????? | | ???????????? # ??????# """ #????? | | ???????????? +???????# """ #????? | | ???????????? #???????# #????? | | ???????????? #???????# #????? | | ??########### #?######## ###### | | ??# !! # #?# #######+## | | ??# !! #@ #?# | | ??# !! g #?# < | | ??# # k#?# %= | | ??# """ """ # #?# #######%## | | ??# """ """ # #?## ##?# # "!" | | ??# """ """ #= #??# #??# #""!" | | ??# #%= #??# #??# ##### | | ??####+###### #??# #??# #???? | | ?????# #????# #?## ##?## #???? | | ?????# #????# ### #??###<###???? | | ###### #????# #????###?????? | | # T # ###### T #########????? | | # # | | # # ### ##########???? | | # # [ #?### ### #???? | | # + ###+######?# #?# """#???? | | # # # * = ### ### """#???? | | # # # """# # ! """#???? | | # # # """# # #???? | | # # # """# +% """#???? | | ###### # # # """#???? | | ?????# # =!! # # """#???? | | ?????# # =! ### ### #???? | | ?????# # !! #?# #?#####/######## | | ?????# # ### ###??# | +----------------------------------------------------+ Best States ------------- Heat Dissipation 25 Energy Generation 10 Energy Capacity 250 Matter Stores 300 Matter Capacity 300 Sight Range 16 Terrain Scan Density 10 Power Shielding 33 Evasion (%) 40 Recoil Reduction 2 Item Schematics ----------------- None Robot Schematics ------------------ None Fabricated ------------ Nothing Alien Tech Used ----------------- None Achievements -------------- None Challenges ------------ None Game ------ Seed SalvagingStealthField Manual? 0 Play Time 00:11:47 Cumulative 16.0 hours Start 2024.10.25 @ 19:10:03 End 2024.10.25 @ 19:19:38 Sessions 1 Manual Loads 0 Difficulty Rogue Special Mode None Game No. 20 Rogue 20 Adventurer 0 Explorer 0 Win Type - Total 0 Types 0/0/0/0/0/0/0/0/0 Lore% 9 Gallery% 17 Achievement% 14 Wizard Run 0 Options --------- Layout 1 ASCII 0 Keyboard 1 Movement Vi Keybinds 0 Fullscreen 1 Font 32/SmallcapsGlow Map View 50x40 Zoom Use 0% Tactical HUD 1 Map Filters NONE Filters NONE Steam 1 RUN: acac7cdb-a77c-405b-b6ea-b3ad4d1a563c